fUST/lending_fUST_20251006
["ID","MTS","AMOUNT","RATE_DAILY","PERIOD"]
[389606963,1759739441612,-411.0,0.00021949,2]
[389606964,1759739441622,-840.22545862,0.00021986,2]
[389606965,1759739441631,-11078.12,0.00022,2]
[389606966,1759739441640,-5899.4,0.00022,2]
[389606967,1759739441649,-162.0,0.00022,2]
[389606968,1759739441658,-357.13215427,0.00022,2]
[389606969,1759739441667,-401.57764522,0.00022,5]
[389606970,1759739441676,-500.0,0.00022001,2]
[389606971,1759739441686,-3500.0,0.00022028,2]
[389606972,1759739441695,-636.0,0.00022038,2]
[389606973,1759739441704,-500.0,0.00022047,2]
[389606974,1759739441714,-629.24,0.00022058,3]
[389606975,1759739441723,-314.62,0.00022058,3]
[389606976,1759739441732,-3500.0,0.00022088,2]
[389606977,1759739441741,-1094.2,0.000221,2]
[389606978,1759739441750,-500.0,0.00022108,2]
[389606979,1759739441760,-3500.0,0.00022142,2]
[389606980,1759739441769,-500.0,0.00022225,2]
[389606981,1759739441779,-500.0,0.00022265,2]
[389606982,1759739441794,-2528.07478961,0.00022268,2]
[389606983,1759739441807,-449.31152088,0.00022268,2]
[389606984,1759739441818,-522.61368951,0.00022268,2]
[389606985,1759739441827,-1217.68754447,0.00022268,2]
[389606986,1759739442176,-605.98137532,0.00022268,2]
[389607006,1759739446194,-2496.14278783,0.0002,2]
[389607007,1759739446246,-1634.25721217,0.0002,2]
[389607008,1759739446256,-665.74278783,0.00022268,2]
[389607009,1759739446267,-1010.58829238,0.00022268,2]
[389607010,1759739446277,-3333.80820546,0.00022268,2]
[389607013,1759739466111,4757.86282618,0.0002012,9]
[389607024,1759739620136,200.0,0.0002876,120]
[389607068,1759739767963,1353.2,0.00028767,120]
[389607077,1759740401759,1000.0,0.00028767,120]
[389607078,1759740480631,177.1,0.0002876,120]
[389607121,1759740632507,-568.88,0.00016746,2]
[389607179,1759740638587,-300.0,0.00016746,2]
[389607181,1759740638597,-150.0,0.00016765,2]
[389607183,1759740638606,-300.0,0.00017099,2]
[389607185,1759740638616,-230.49640319,0.00017099,2]
[389607186,1759740638625,-491.27774564,0.00017099,2]
[389607187,1759740638634,-40320.0,0.000171,2]
[389607188,1759740638644,-324.0,0.00017146,2]
[389607190,1759740638654,-348.0,0.00017546,2]
[389607191,1759740638663,-300.0,0.00017761,2]
[389607192,1759740638674,-300.0,0.00017761,2]
[389607193,1759740638683,-300.0,0.00017761,2]
[389607194,1759740638693,-300.0,0.00017761,2]
[389607195,1759740638703,-300.0,0.00017761,2]
[389607196,1759740638713,-300.0,0.00017761,2]
[389607197,1759740638722,-171.14975004,0.00017761,2]
[389607198,1759740638733,-128.85024996,0.00017761,2]
[389607199,1759740638743,-300.0,0.00017761,2]
[389607200,1759740638752,-300.0,0.00017761,2]
[389607201,1759740638762,-300.0,0.00017761,2]
[389607202,1759740638771,-300.0,0.00017761,2]
[389607203,1759740638780,-300.0,0.00017761,2]
[389607204,1759740638789,-300.0,0.00017761,2]
[389607205,1759740638799,-300.0,0.00017761,2]
[389607206,1759740638808,-300.0,0.00017761,2]
[389607207,1759740638817,-372.0,0.00017946,2]
[389607208,1759740638826,-600.0,0.00017972,2]
[389607209,1759740638836,-151.0,0.000181,2]
[389607210,1759740638845,-151.0,0.00018134,2]
[389607211,1759740638855,-151.0,0.00018168,2]
[389607212,1759740638864,-151.0,0.00018203,2]
[389607213,1759740638873,-151.0,0.00018237,2]
[389607214,1759740638883,-151.0,0.00018272,2]
[389607215,1759740638891,-151.0,0.00018306,2]
[389607216,1759740638901,-151.0,0.00018341,2]
[389607217,1759740638910,-396.0,0.00018346,2]
[389607218,1759740638919,-151.0,0.00018375,2]
[389607219,1759740638930,-158.0,0.00018384,3]
[389607220,1759740638939,-350.0,0.00018386,2]
[389607221,1759740638949,-151.0,0.0001841,2]
[389607222,1759740638959,-199.64,0.00018413,2]
[389607223,1759740638968,-151.0,0.00018444,2]
[389607224,1759740638978,-151.0,0.00018479,2]
[389607225,1759740638988,-151.0,0.00018513,2]
[389607226,1759740638998,-500.01,0.00018518,2]
[389607227,1759740639008,-500.0,0.00018528,2]
[389607228,1759740639017,-151.0,0.00018548,2]
[389607229,1759740639028,-500.0,0.00018557,2]
[389607230,1759740639039,-381.07387918,0.00018557,2]
[389607231,1759740639051,-118.92612082,0.00018557,2]
[389607232,1759740639061,-151.0,0.00018582,2]
[389607233,1759740639071,-499.34497468,0.00018604,2]
[389607234,1759740639080,-500.01,0.0001861,2]
[389607235,1759740639090,-500.0,0.00018614,2]
[389607236,1759740639099,-509.01000725,0.00018614,2]
[389607237,1759740639109,-500.0,0.00018614,2]
[389607238,1759740639118,-151.0,0.00018617,2]
[389607239,1759740639127,-533.6495537,0.00018635,2]
[389607240,1759740639137,-293.61728183,0.00018635,2]
[389607241,1759740639148,-151.0,0.00018651,2]
[389607242,1759740639160,-160.0,0.00018655,2]
[389607243,1759740639169,-160.0,0.00018655,2]
[389607244,1759740639179,-234.17717776,0.00018655,2]
[389607245,1759740639188,-500.0,0.00018667,2]
[389607246,1759740639202,-500.0,0.00018667,2]
[389607247,1759740639212,-420.0,0.00018674,2]
[389607248,1759740639222,-151.0,0.00018686,2]
[389607249,1759740639232,-151.0,0.0001872,2]
[389607250,1759740639241,-420.0,0.00018746,2]
[389607251,1759740639251,-151.0,0.00018755,2]
[389607252,1759740639260,-151.0,0.00018789,2]
[389607253,1759740639269,-500.38124082,0.000188,2]
[389607254,1759740639279,-500.0,0.000188,2]
[389607255,1759740639288,-500.0,0.000188,2]
[389607256,1759740639297,-500.0,0.000188,2]
[389607257,1759740639306,-500.0,0.000188,2]
[389607258,1759740639316,-510.94577465,0.000188,2]
[389607259,1759740639325,-500.0,0.000188,2]
[389607260,1759740639335,-500.0,0.000188,2]
[389607261,1759740639344,-500.0,0.000188,2]
[389607262,1759740639354,-500.0,0.000188,2]
[389607263,1759740639363,-500.0,0.000188,2]
[389607264,1759740639373,-500.0,0.000188,2]
[389607265,1759740639384,-500.0,0.00018802,2]
[389607266,1759740639393,-151.0,0.00018824,2]
[389607267,1759740639403,-151.0,0.00018858,2]
[389607268,1759740639412,-151.0,0.00018893,2]
[389607269,1759740639422,-151.0,0.00018927,2]
[389607270,1759740639431,-151.0,0.00018962,2]
[389607271,1759740639440,-151.0,0.00018996,2]
[389607272,1759740639450,-151.0,0.00019031,2]
[389607273,1759740639459,-151.0,0.00019065,2]
[389607274,1759740639467,-500.0,0.00019076,2]
[389607275,1759740639673,-1428.16777633,0.00019093,2]
[389607276,1759740639691,-151.0,0.000191,2]
[389607277,1759740639700,-1000.0,0.00019105,2]
[389607278,1759740639710,-1000.0,0.00019105,2]
[389607279,1759740639720,-444.0,0.00019146,2]
[389607280,1759740639729,-1000.0,0.00019162,2]
[389607281,1759740639741,-1000.0,0.00019162,2]
[389607282,1759740639751,-797.39925015,0.00019178,2]
[389607283,1759740639760,-261.68566268,0.00019178,2]
[389607284,1759740639769,-150.0,0.00019178,2]
[389607285,1759740639779,-500.0,0.00019215,2]
[389607286,1759740639788,-1000.0,0.00019215,2]
[389607287,1759740639797,-300.0,0.00019315,2]
[389607288,1759740639806,-160.0,0.00019329,2]
[389607289,1759740639815,-1000.0,0.00019348,2]
[389607290,1759740639824,-1000.0,0.00019348,2]
[389607291,1759740639833,-367.15922606,0.00019348,2]
[389607292,1759740639855,-632.84077394,0.00019348,2]
[389607293,1759740639864,-600.61797251,0.00019348,2]
[389607323,1759740640447,-220.4229886,0.00019198,2]
[389607729,1759740646436,-160.0,0.0001762,2]
[389607731,1759740646445,-1207.74478773,0.00019198,2]
[389607733,1759740646454,-399.38202749,0.00019348,2]
[389607735,1759740646465,-1000.0,0.00019348,2]
[389607737,1759740646474,-1000.0,0.00019348,2]
[389607739,1759740646483,-1000.0,0.00019348,2]
[389607741,1759740646492,-501.98365039,0.00019348,2]
[389607743,1759740646501,-415.95746061,0.00019348,2]
[389607745,1759740646510,-500.0,0.0001935,2]
[389607747,1759740646519,-9.39447314,0.00019452,2]
[389607809,1759741359510,1428.16777633,0.0001455,2]
[389607810,1759741359795,1428.16777633,0.00014983,2]
[389607811,1759741360142,1428.16777633,0.00015254,2]
[389607812,1759741360960,1428.16777633,0.00015493,2]
[389607813,1759741361300,1428.16777633,0.00015656,2]
[389607815,1759741480541,1883.0,0.00028767,120]
[389607880,1759741832726,-447.14058132,0.00016346,2]
[389607882,1759741832736,-791.85941868,0.00016438,2]
[389607885,1759741832747,-708.14058132,0.00016438,2]
[389607887,1759741832756,-150.0,0.00016646,2]
[389607916,1759741832765,-300.0,0.00016646,2]
[389607917,1759741833042,-166.66,0.00016646,2]
[389607918,1759741833061,-218.1015131,0.00016646,2]
[389607919,1759741833071,-313.257632,0.00016646,2]
[389607920,1759741833080,-166.66,0.0001692,2]
[389607921,1759741833089,-324.0,0.00017046,2]
[389607922,1759741833099,-711.93027358,0.0001707,2]
[389607923,1759741833119,-668.97748556,0.0001707,2]
[389607924,1759741833128,-166.68,0.00017194,2]
[389607925,1759741833137,-1000.0,0.00017327,2]
[389607926,1759741833147,-348.0,0.00017446,2]
[389607927,1759741833156,-1200.0,0.00017582,2]
[389607928,1759741833165,-1428.16777634,0.00017583,2]
[389607929,1759741833174,-300.0,0.00017616,2]
[389607930,1759741833183,-210.0,0.00017616,2]
[389607931,1759741833192,-1200.0,0.00017617,2]
[389607932,1759741833202,-300.0,0.00017618,2]
[389607933,1759741833212,-300.0,0.00017618,2]
[389607934,1759741833222,-300.0,0.00017618,2]
[389607935,1759741833231,-300.0,0.00017618,2]
[389607936,1759741833240,-300.0,0.00017618,2]
[389607937,1759741833249,-300.0,0.00017618,2]
[389607938,1759741833259,-300.0,0.00017618,2]
[389607939,1759741833268,-300.0,0.00017618,2]
[389607940,1759741833276,-300.0,0.00017618,2]
[389607941,1759741833286,-300.0,0.00017618,2]
[389607942,1759741833295,-300.0,0.00017618,2]
[389607943,1759741833304,-300.0,0.00017618,2]
[389607944,1759741833313,-300.0,0.00017618,2]
[389607945,1759741833323,-300.0,0.00017618,2]
[389607946,1759741833332,-300.0,0.00017618,2]
[389607947,1759741833341,-263.93,0.00017618,2]
[389607948,1759741833350,-263.93,0.00017718,2]
[389607949,1759741833360,-372.0,0.00017846,2]
[389607950,1759741833370,-266.49,0.00017846,2]
[389607951,1759741833379,-387.5587884,0.0001795,2]
[389607952,1759741833388,-600.0,0.00017969,2]
[389607953,1759741833397,-269.04,0.00018018,2]
[389607954,1759741833407,-1428.16777634,0.0001804,2]
[389607955,1759741833416,-151.0,0.000181,2]
[389607956,1759741833425,-151.0,0.00018211,2]
[389607957,1759741833434,-396.0,0.00018246,2]
[389607958,1759741833443,-160.0,0.00018279,2]
[389607959,1759741833452,-1428.16777634,0.00018317,2]
[389607960,1759741833461,-151.0,0.00018322,2]
[389607961,1759741833470,-164.0,0.00018356,3]
[389607962,1759741833479,-252.53743412,0.00018374,2]
[389607963,1759741833489,-289.15,0.00018405,2]
[389607964,1759741833498,-151.0,0.00018433,2]
[389607965,1759741833507,-293.61728183,0.00018467,2]
[389607966,1759741833516,-234.17717776,0.00018468,2]
[389607967,1759741833526,-533.6495537,0.00018468,2]
[389607968,1759741833535,-500.0,0.00018496,2]
[389607969,1759741833544,-305.43118052,0.00018496,2]
[389607970,1759741833553,-1428.16777634,0.00018529,2]
[389607971,1759741833562,-151.0,0.00018544,2]
[389607972,1759741833571,-200.12417461,0.00018604,2]
[389607973,1759741833580,-420.0,0.00018646,2]
[389607974,1759741833589,-151.0,0.00018655,2]
[389607975,1759741833598,-597.42367753,0.00018666,2]
[389607976,1759741833609,-41648.35413552,0.000187,2]
[389607985,1759741838586,-21582.86017128,0.000187,2]
[389607986,1759741838596,-151.0,0.00018766,2]
[389607987,1759741838606,-500.0,0.0001877,2]
[389607988,1759741838615,-1428.16777634,0.00018823,2]
[389607989,1759741838624,-151.0,0.00018877,2]
[389607990,1759741838633,-1428.16777634,0.00018974,2]
[389607991,1759741838643,-151.0,0.00018988,2]
[389607992,1759741838652,-4876.67759311,0.0001899,2]
[389607993,1759741838661,-500.0,0.00019044,2]
[389607994,1759741838671,-444.0,0.00019046,2]
[389607995,1759741838679,-160.0,0.00019054,2]
[389607996,1759741838689,-160.0,0.00019078,2]
[389607998,1759741838700,-160.0,0.00019078,2]
[389607999,1759741838709,-151.0,0.000191,2]
[389608000,1759741838719,-500.0,0.00019108,2]
[389608001,1759741838729,-928.1169033,0.00019125,2]
[389608002,1759741838739,-353.1063221,0.00019125,2]
[389608003,1759741838747,-227.1211276,0.00019125,2]
[389608004,1759741838756,-3239.444258,0.00019125,2]
[389608005,1759741838764,-1062.60035708,0.00019148,2]
[389608006,1759741838773,-500.0,0.00019201,2]
[389608007,1759741838783,-420.0,0.00019229,2]
[389608008,1759741838792,-500.0,0.00019318,2]
[389608009,1759741838801,-2927.0,0.00019345,2]
[389608010,1759741838810,-500.0,0.0001938,2]
[389608011,1759741838821,-500.0,0.00019382,2]
[389608012,1759741838830,-3000.0,0.000194,2]
[389608013,1759741838840,-3000.0,0.0001941,2]
[389608014,1759741838851,-3000.0,0.0001942,2]
[389608015,1759741838860,-3000.0,0.0001943,2]
[389608016,1759741838869,-1428.16777634,0.00019438,2]
[389608017,1759741838878,-3000.0,0.0001944,2]
[389608018,1759741838889,-468.0,0.00019446,2]
[389608019,1759741838898,-3000.0,0.0001945,2]
[389608020,1759741838908,-301.28250478,0.00019452,2]
[389608021,1759741838916,-167.0,0.00019452,3]
[389608022,1759741838928,-3000.0,0.0001946,2]
[389608023,1759741838937,-3000.0,0.0001947,2]
[389608024,1759741838946,-500.01,0.00019475,2]
[389608025,1759741838956,-150.0,0.00019478,2]
[389608026,1759741838966,-150.0,0.00019478,2]
[389608027,1759741838975,-150.0,0.00019478,2]
[389608028,1759741838985,-980.0,0.00019478,2]
[389608029,1759741838995,-630.0,0.00019478,2]
[389608030,1759741839006,-2158.0,0.00019478,2]
[389608031,1759741839015,-3000.0,0.0001948,2]
[389608032,1759741839024,-3000.0,0.0001949,2]
[389608033,1759741839034,-3000.0,0.000195,2]
[389608034,1759741839043,-282.69,0.000195,3]
[389608035,1759741839053,-848.1,0.000195,3]
[389608036,1759741839062,-3000.0,0.0001951,2]
[389608037,1759741839072,-270.61593416,0.00019519,2]
[389608038,1759741839081,-409.2972493,0.00019519,2]
[389608039,1759741839090,-3000.0,0.0001952,2]
[389608040,1759741839100,-3000.0,0.0001953,2]
[389608041,1759741839110,-3000.0,0.0001954,2]
[389608042,1759741839120,-3000.0,0.0001955,2]
[389608043,1759741839131,-3000.0,0.0001956,2]
[389608044,1759741839140,-3000.0,0.0001957,2]
[389608045,1759741839149,-3000.0,0.0001958,2]
[389608046,1759741839160,-3000.0,0.0001959,2]
[389608047,1759741839170,-500.0,0.00019592,2]
[389608048,1759741839179,-3000.0,0.000196,2]
[389608049,1759741839189,-3000.0,0.0001961,2]
[389608050,1759741839198,-3000.0,0.0001962,2]
[389608051,1759741839208,-151.697729,0.0001962,5]
[389608052,1759741839217,-3000.0,0.0001963,2]
[389608053,1759741839228,-3000.0,0.0001964,2]
[389608054,1759741839239,-3000.0,0.0001965,2]
[389608055,1759741839249,-500.01,0.00019654,2]
[389608056,1759741839258,-500.0,0.00019656,2]
[389608057,1759741839268,-3000.0,0.0001966,2]
[389608058,1759741839277,-3000.0,0.0001967,2]
[389608059,1759741839286,-3000.0,0.0001968,2]
[389608060,1759741839296,-3000.0,0.0001969,2]
[389608061,1759741839305,-3000.0,0.000197,2]
[389608062,1759741839316,-3000.0,0.0001971,2]
[389608063,1759741839325,-3000.0,0.0001972,2]
[389608064,1759741839335,-3000.0,0.0001973,2]
[389608065,1759741839344,-3000.0,0.0001974,2]
[389608066,1759741839353,-3000.0,0.0001975,2]
[389608067,1759741839363,-3000.0,0.0001976,2]
[389608068,1759741839372,-720.0,0.00019766,2]
[389608069,1759741839381,-3000.0,0.0001977,2]
[389608070,1759741839391,-2452.12225702,0.00019771,2]
[389608071,1759741839399,-3000.0,0.0001978,2]
[389608072,1759741839409,-3000.0,0.0001979,2]
[389608073,1759741839418,-3000.0,0.000198,2]
[389608074,1759741839427,-3000.0,0.0001981,2]
[389608075,1759741839436,-1428.16777634,0.00019811,2]
[389608076,1759741839445,-3000.0,0.0001982,2]
[389608077,1759741839454,-3000.0,0.0001983,2]
[389608078,1759741839463,-160.0,0.00019833,2]
[389608079,1759741839472,-3000.0,0.0001984,2]
[389608080,1759741839481,-492.0,0.00019846,2]
[389608081,1759741839491,-151.0,0.00019846,2]
[389608082,1759741839500,-151.0,0.00019846,2]
[389608083,1759741839509,-151.0,0.00019846,2]
[389608084,1759741839518,-151.0,0.00019846,2]
[389608085,1759741839527,-151.0,0.00019846,2]
[389608086,1759741839536,-151.0,0.00019846,2]
[389608087,1759741839545,-151.0,0.00019846,2]
[389608088,1759741839554,-151.0,0.00019846,2]
[389608089,1759741839563,-3000.0,0.0001985,2]
[389608090,1759741839571,-213.658544,0.0001985,2]
[389608091,1759741839580,-213.658544,0.0001985,2]
[389608092,1759741839589,-213.658544,0.0001985,2]
[389608093,1759741839597,-213.658544,0.0001985,2]
[389608094,1759741839606,-151.0,0.0001985,2]
[389608095,1759741839615,-151.0,0.0001985,2]
[389608096,1759741839623,-151.0,0.0001985,2]
[389608097,1759741839632,-151.0,0.0001985,2]
[389608098,1759741839641,-151.0,0.0001985,2]
[389608099,1759741839649,-151.0,0.0001985,2]
[389608100,1759741839658,-151.0,0.0001985,2]
[389608101,1759741839667,-151.0,0.0001985,2]
[389608102,1759741839676,-151.0,0.0001985,2]
[389608103,1759741839685,-151.0,0.0001985,2]
[389608104,1759741839693,-151.932092,0.0001985,2]
[389608105,1759741839702,-151.0,0.0001985,2]
[389608106,1759741839711,-395.065181,0.0001985,2]
[389608107,1759741839721,-395.065181,0.0001985,2]
[389608108,1759741839730,-395.065181,0.0001985,2]
[389608109,1759741839740,-395.065181,0.0001985,2]
[389608110,1759741839748,-151.0,0.0001985,2]
[389608111,1759741839757,-151.0,0.0001985,2]
[389608112,1759741839766,-264.214941,0.0001985,2]
[389608113,1759741839775,-151.0,0.0001985,2]
[389608114,1759741839784,-151.0,0.0001985,2]
[389608115,1759741839793,-1683.566719,0.0001985,2]
[389608116,1759741839802,-159.479527,0.0001985,2]
[389608117,1759741839811,-1683.566719,0.0001985,2]
[389608118,1759741839820,-1683.566719,0.0001985,2]
[389608119,1759741839829,-1683.566719,0.0001985,2]
[389608120,1759741839839,-169.091469,0.0001985,2]
[389608121,1759741839851,-151.0,0.0001985,2]
[389608122,1759741839860,-151.0,0.0001985,2]
[389608123,1759741839870,-5445.372197,0.0001986,2]
[389608124,1759741839879,-151.0,0.0001986,2]
[389608125,1759741839889,-151.0,0.0001986,2]
[389608126,1759741839898,-151.0,0.0001986,2]
[389608127,1759741839908,-152.12179,0.0001986,2]
[389608128,1759741839918,-151.0,0.0001986,2]
[389608129,1759741839927,-151.0,0.0001986,2]
[389608130,1759741839936,-234.259348,0.0001986,2]
[389608131,1759741839945,-172.963564,0.0001986,2]
[389608132,1759741839954,-172.963564,0.0001986,2]
[389608133,1759741839962,-172.963564,0.0001986,2]
[389608134,1759741839972,-172.963564,0.0001986,2]
[389608135,1759741839983,-151.0,0.0001986,2]
[389608136,1759741839993,-151.951164,0.0001986,2]
[389608137,1759741840003,-151.0,0.0001986,2]
[389608138,1759741840011,-151.0,0.0001986,2]
[389608139,1759741840020,-151.0,0.0001986,2]
[389608140,1759741840029,-151.0,0.0001986,2]
[389608141,1759741840038,-151.0,0.0001986,2]
[389608142,1759741840048,-151.0,0.0001986,2]
[389608143,1759741840058,-151.0,0.0001986,2]
[389608144,1759741840067,-207.350752,0.0001986,2]
[389608145,1759741840076,-207.350752,0.0001986,2]
[389608146,1759741840085,-207.350752,0.0001986,2]
[389608147,1759741840094,-207.350752,0.0001986,2]
[389608148,1759741840103,-151.0,0.0001986,2]
[389608149,1759741840112,-155.532854,0.0001986,2]
[389608150,1759741840121,-151.0,0.0001986,2]
[389608151,1759741840130,-151.0,0.0001986,2]
[389608152,1759741840139,-151.0,0.0001986,2]
[389608153,1759741840149,-151.0,0.0001986,2]
[389608154,1759741840159,-151.0,0.0001986,2]
[389608155,1759741840168,-151.0,0.0001986,2]
[389608156,1759741840178,-151.0,0.0001986,2]
[389608157,1759741840187,-151.0,0.0001986,2]
[389608158,1759741840196,-151.0,0.0001986,2]
[389608159,1759741840205,-151.0,0.0001986,2]
[389608160,1759741840214,-151.0,0.0001986,2]
[389608162,1759741840226,-151.0,0.0001986,2]
[389608163,1759741840235,-151.0,0.0001986,2]
[389608164,1759741840244,-151.0,0.0001986,2]
[389608165,1759741840253,-151.0,0.00019866,2]
[389608166,1759741840262,-151.0,0.00019866,2]
[389608167,1759741840271,-174.345799,0.00019866,2]
[389608169,1759741840280,-151.0,0.00019866,2]
[389608170,1759741840290,-174.345799,0.00019866,2]
[389608171,1759741840299,-151.0,0.00019866,2]
[389608172,1759741840309,-174.345799,0.00019866,2]
[389608173,1759741840319,-151.0,0.00019866,2]
[389608175,1759741840328,-151.0,0.00019866,2]
[389608176,1759741840338,-174.345799,0.00019866,2]
[389608177,1759741840347,-151.0,0.00019866,2]
[389608178,1759741840356,-151.0,0.00019866,2]
[389608179,1759741840366,-151.0,0.00019866,2]
[389608180,1759741840375,-151.0,0.00019866,2]
[389608182,1759741840383,-151.0,0.00019866,2]
[389608184,1759741840392,-151.0,0.00019866,2]
[389608186,1759741840401,-287.883654,0.00019866,2]
[389608188,1759741840410,-151.0,0.00019866,2]
[389608190,1759741840419,-207.68461608,0.00019866,2]
[389608192,1759741840428,-109126.72110763,0.00019871,2]
[389608194,1759741840437,-151.0,0.00019871,2]
[389608196,1759741840446,-151.0,0.00019871,2]
[389608198,1759741840455,-1683.566719,0.00019871,2]
[389608200,1759741840464,-1683.566719,0.00019871,2]
[389608201,1759741840473,-1683.566719,0.00019871,2]
[389608204,1759741840483,-1683.566719,0.00019871,2]
[389608205,1759741840493,-151.0,0.00019871,2]
[389608207,1759741840505,-151.0,0.00019871,2]
[389608209,1759741840515,-151.0,0.00019871,2]
[389608211,1759741840525,-190.706548,0.00019871,2]
[389608213,1759741840534,-151.0,0.00019871,2]
[389608215,1759741840543,-151.0,0.00019871,2]
[389608217,1759741840553,-151.0,0.00019871,2]
[389608218,1759741840562,-151.0,0.00019871,2]
[389608219,1759741840570,-151.0,0.00019871,2]
[389608220,1759741840579,-176.365585,0.00019871,2]
[389608221,1759741840589,-500.0,0.00019873,2]
[389608222,1759741840597,-500.0,0.00019873,2]
[389608223,1759741840606,-341.55666163,0.00019873,2]
[389608224,1759741840616,-500.0,0.00019873,2]
[389608225,1759741840624,-500.0,0.00019873,2]
[389608226,1759741840633,-500.50022108,0.00019873,2]
[389608227,1759741840642,-500.0,0.00019873,2]
[389608228,1759741840650,-500.0,0.00019873,2]
[389608229,1759741840659,-500.0,0.00019873,2]
[389608231,1759741840823,-150.0,0.00019873,2]
[389608232,1759741840837,-500.0,0.00019873,2]
[389608233,1759741840847,-501.331365,0.00019873,2]
[389608234,1759741840856,-500.0,0.00019873,2]
[389608235,1759741840865,-501.00167003,0.00019873,2]
[389608236,1759741840874,-500.0,0.00019873,2]
[389608237,1759741840884,-500.0,0.00019873,2]
[389608239,1759741840893,-500.75186401,0.00019873,2]
[389608241,1759741840903,-500.0,0.00019873,2]
[389608242,1759741840912,-151.0,0.0001988,2]
[389608244,1759741840925,-151.0,0.0001988,2]
[389608246,1759741840934,-151.0,0.0001988,2]
[389608248,1759741840943,-151.0,0.0001988,2]
[389608251,1759741840953,-151.0,0.0001988,2]
[389608252,1759741840962,-172.963564,0.0001988,2]
[389608254,1759741840971,-172.963564,0.0001988,2]
[389608256,1759741840980,-172.963564,0.0001988,2]
[389608259,1759741840990,-172.963564,0.0001988,2]
[389608261,1759741841000,-151.0,0.0001988,2]
[389608263,1759741841009,-151.0,0.0001988,2]
[389608265,1759741841018,-151.0,0.0001988,2]
[389608267,1759741841027,-151.0,0.0001988,2]
[389608269,1759741841036,-151.0,0.0001988,2]
[389608270,1759741841045,-151.0,0.0001988,2]
[389608272,1759741841054,-151.0,0.0001988,2]
[389608274,1759741841062,-151.0,0.0001988,2]
[389608276,1759741841071,-213.658544,0.0001988,2]
[389608278,1759741841080,-213.658544,0.0001988,2]
[389608279,1759741841089,-213.658544,0.0001988,2]
[389608281,1759741841098,-213.658544,0.0001988,2]
[389608282,1759741841107,-151.0,0.0001988,2]
[389608283,1759741841116,-151.0,0.0001988,2]
[389608284,1759741841125,-151.0,0.0001988,2]
[389608285,1759741841135,-207.350752,0.0001988,2]
[389608286,1759741841143,-151.0,0.0001988,2]
[389608287,1759741841153,-207.350752,0.0001988,2]
[389608288,1759741841162,-207.350752,0.0001988,2]
[389608289,1759741841171,-207.350752,0.0001988,2]
[389608290,1759741841180,-151.0,0.0001988,2]
[389608291,1759741841189,-151.0,0.0001988,2]
[389608292,1759741841198,-152.387048,0.0001988,2]
[389608293,1759741841208,-151.0,0.0001988,2]
[389608294,1759741841217,-151.0,0.0001988,2]
[389608295,1759741841227,-151.0,0.0001988,2]
[389608296,1759741841236,-151.0,0.0001988,2]
[389608297,1759741841246,-151.0,0.0001988,2]
[389608298,1759741841255,-151.0,0.0001988,2]
[389608299,1759741841264,-151.0,0.0001988,2]
[389608300,1759741841273,-151.0,0.0001988,2]